[Event "Early-Titled-Tuesday-Blitz-July-09-2024"]
[Site "Chess.com"]
[Date "2024.07.09"]
[Round "7"]
[White "ImportedItalianMaple"]
[Black "RTchess367"]
[Result "1-0"]
[WhiteElo "2477"]
[BlackElo "2290"]
[TimeControl "180+1"]
[EndTime "9:19:16 PDT"]
[Termination "ImportedItalianMaple won by resignation"]

1. d4 {[%clk 0:03:00.9]} 1... Nf6 {[%clk 0:02:59.5]} 2. Bg5 {[%clk 0:03:00.5]}
2... Ne4 {[%clk 0:02:57.1]} 3. h4 {[%clk 0:03:00.4]} 3... d5 {[%clk 0:02:55.6]}
4. Nd2 {[%clk 0:03:00.1]} 4... Nxd2 {[%clk 0:02:51.2]} 5. Qxd2 {[%clk
0:02:59.3]} 5... Bf5 {[%clk 0:02:51]} 6. e3 {[%clk 0:02:50.7]} 6... Nd7 {[%clk
0:02:49.1]} 7. Nf3 {[%clk 0:02:49.2]} 7... h6 {[%clk 0:02:46.6]} 8. Bf4 {[%clk
0:02:49.1]} 8... c5 {[%clk 0:02:45.3]} 9. c4 {[%clk 0:02:46.8]} 9... dxc4 {[%clk
0:02:35.3]} 10. Bxc4 {[%clk 0:02:47.1]} 10... e6 {[%clk 0:02:35.7]} 11. d5
{[%clk 0:02:40.9]} 11... Be7 {[%clk 0:02:19.1]} 12. dxe6 {[%clk 0:02:36]} 12...
fxe6 {[%clk 0:02:18.6]} 13. Bb5 {[%clk 0:02:14.7]} 13... a6 {[%clk 0:01:51.9]}
14. Bd3 {[%clk 0:01:30]} 14... Nf6 {[%clk 0:01:24.1]} 15. Bxf5 {[%clk
0:01:12.4]} 15... Qxd2+ {[%clk 0:01:23]} 16. Nxd2 {[%clk 0:01:12.8]} 16... exf5
{[%clk 0:01:22.9]} 17. Nc4 {[%clk 0:01:04.8]} 17... O-O {[%clk 0:01:10.2]} 18.
Rd1 {[%clk 0:01:02.3]} 18... Rfd8 {[%clk 0:01:08.3]} 19. Ke2 {[%clk 0:01:01.3]}
19... Nd5 {[%clk 0:00:54.9]} 20. Be5 {[%clk 0:00:35.1]} 20... b5 {[%clk
0:00:53.6]} 21. Na5 {[%clk 0:00:34.5]} 21... Nb4 {[%clk 0:00:27.8]} 22. a3
{[%clk 0:00:22.2]} 22... Nd5 {[%clk 0:00:22.8]} 23. Nc6 {[%clk 0:00:21]} 23...
Rd7 {[%clk 0:00:15.2]} 24. Rxd5 {[%clk 0:00:20.8]} 24... Rxd5 {[%clk 0:00:12]}
25. Nxe7+ {[%clk 0:00:21.3]} 25... Kf7 {[%clk 0:00:12.6]} 26. Nxd5 {[%clk
0:00:22.1]} 26... Ke6 {[%clk 0:00:13.3]} 27. Nc7+ {[%clk 0:00:21.6]} 1-0

[Event "Early-Titled-Tuesday-Blitz-July-09-2024"]
[Site "Chess.com"]
[Date "2024.07.09"]
[Round "7"]
[White "Volodar_Murzin"]
[Black "Shankland"]
[Result "1-0"]
[WhiteElo "2998"]
[BlackElo "2890"]
[TimeControl "180+1"]
[EndTime "9:19:17 PDT"]
[Termination "Volodar_Murzin won by resignation"]

1. d4 {[%clk 0:03:00.9]} 1... d5 {[%clk 0:02:59.1]} 2. Bf4 {[%clk 0:02:59.8]}
2... c5 {[%clk 0:02:58.8]} 3. e3 {[%clk 0:02:59.9]} 3... Nc6 {[%clk 0:02:59.2]}
4. c3 {[%clk 0:02:59.6]} 4... Bf5 {[%clk 0:02:58.6]} 5. Nd2 {[%clk 0:02:58.9]}
5... e6 {[%clk 0:02:58.4]} 6. Ngf3 {[%clk 0:02:59]} 6... Nf6 {[%clk 0:02:58.5]}
7. Qa4 {[%clk 0:02:58.9]} 7... Bd6 {[%clk 0:02:53.1]} 8. Bb5 {[%clk 0:02:51.8]}
8... O-O {[%clk 0:02:48.2]} 9. Bxd6 {[%clk 0:02:42]} 9... Qxd6 {[%clk
0:02:47.8]} 10. Qa3 {[%clk 0:02:42.9]} 10... b6 {[%clk 0:02:43.6]} 11. O-O
{[%clk 0:02:41.7]} 11... Rfd8 {[%clk 0:02:41.7]} 12. Rac1 {[%clk 0:02:37.7]}
12... c4 {[%clk 0:02:28.3]} 13. Qxd6 {[%clk 0:02:28.4]} 13... Rxd6 {[%clk
0:02:29.2]} 14. b3 {[%clk 0:02:28.4]} 14... a6 {[%clk 0:02:28.5]} 15. Bxc6
{[%clk 0:02:25.3]} 15... Rxc6 {[%clk 0:02:28.8]} 16. Ne5 {[%clk 0:02:25.6]}
16... Rc7 {[%clk 0:02:27]} 17. bxc4 {[%clk 0:02:25.7]} 17... dxc4 {[%clk
0:02:23]} 18. f3 {[%clk 0:02:01.2]} 18... Bd3 {[%clk 0:01:54.3]} 19. Rfe1 {[%clk
0:02:00.1]} 19... b5 {[%clk 0:01:49.5]} 20. e4 {[%clk 0:01:58.8]} 20... Rac8
{[%clk 0:01:44.2]} 21. Re3 {[%clk 0:01:56.3]} 21... Nd7 {[%clk 0:01:40.8]} 22.
Nxd3 {[%clk 0:01:51.4]} 22... cxd3 {[%clk 0:01:41.7]} 23. Rxd3 {[%clk
0:01:52.3]} 23... Nb6 {[%clk 0:01:41.6]} 24. Kf1 {[%clk 0:01:05.9]} 24... b4
{[%clk 0:01:30.5]} 25. Rb1 {[%clk 0:01:00.8]} 25... bxc3 {[%clk 0:00:53.2]} 26.
Rxb6 {[%clk 0:00:59.6]} 26... c2 {[%clk 0:00:53.7]} 27. Nb3 {[%clk 0:01:00.2]}
27... c1=Q+ {[%clk 0:00:53.7]} 28. Nxc1 {[%clk 0:01:00.8]} 28... Rxc1+ {[%clk
0:00:54]} 29. Ke2 {[%clk 0:00:56.9]} 29... g5 {[%clk 0:00:54.1]} 30. Rd2 {[%clk
0:00:38.7]} 30... Rg1 {[%clk 0:00:44.2]} 31. Kf2 {[%clk 0:00:34.6]} 31... Rcc1
{[%clk 0:00:43.7]} 32. Rxa6 {[%clk 0:00:25.1]} 32... h5 {[%clk 0:00:40.7]} 33.
Kg3 {[%clk 0:00:23.8]} 33... f5 {[%clk 0:00:29.8]} 34. exf5 {[%clk 0:00:20.5]}
34... exf5 {[%clk 0:00:29.7]} 35. Rg6+ {[%clk 0:00:21.2]} 1-0

[Event "Early-Titled-Tuesday-Blitz-July-09-2024"]
[Site "Chess.com"]
[Date "2024.07.09"]
[Round "7"]
[White "Alexander_Donchenko"]
[Black "Andrey_Klymchuk"]
[Result "0-1"]
[WhiteElo "2890"]
[BlackElo "2768"]
[TimeControl "180+1"]
[EndTime "9:19:19 PDT"]
[Termination "Andrey_Klymchuk won by resignation"]

1. Nf3 {[%clk 0:03:00.9]} 1... g6 {[%clk 0:02:59.4]} 2. g3 {[%clk 0:03:00.7]}
2... b6 {[%clk 0:02:58.9]} 3. Bg2 {[%clk 0:03:00.4]} 3... Bb7 {[%clk 0:02:59.1]}
4. O-O {[%clk 0:03:01]} 4... Bg7 {[%clk 0:02:59.4]} 5. d4 {[%clk 0:03:01.6]}
5... Nf6 {[%clk 0:02:59.4]} 6. c4 {[%clk 0:03:02.3]} 6... O-O {[%clk 0:02:59.7]}
7. d5 {[%clk 0:03:03]} 7... c6 {[%clk 0:02:58.4]} 8. Nc3 {[%clk 0:03:02.4]} 8...
cxd5 {[%clk 0:02:58.4]} 9. cxd5 {[%clk 0:03:03.3]} 9... Na6 {[%clk 0:02:57.6]}
10. e4 {[%clk 0:03:03.6]} 10... d6 {[%clk 0:02:55.6]} 11. Nd4 {[%clk 0:03:03.6]}
11... Rc8 {[%clk 0:02:54.6]} 12. Nc6 {[%clk 0:03:03.4]} 12... Bxc6 {[%clk
0:02:53.2]} 13. dxc6 {[%clk 0:03:04.3]} 13... Nb4 {[%clk 0:02:50]} 14. Qa4
{[%clk 0:02:54.9]} 14... Nxc6 {[%clk 0:02:49.1]} 15. Rd1 {[%clk 0:02:55.6]}
15... Nd7 {[%clk 0:02:47.5]} 16. Be3 {[%clk 0:02:53.5]} 16... Nc5 {[%clk
0:02:44.6]} 17. Qa3 {[%clk 0:02:46.8]} 17... a5 {[%clk 0:02:39]} 18. Rac1 {[%clk
0:02:45.9]} 18... Ne5 {[%clk 0:02:25]} 19. Bf1 {[%clk 0:02:40.7]} 19... f5
{[%clk 0:02:14.3]} 20. exf5 {[%clk 0:02:38.8]} 20... gxf5 {[%clk 0:02:11.7]} 21.
Nd5 {[%clk 0:02:37.6]} 21... e6 {[%clk 0:01:57.9]} 22. Nf4 {[%clk 0:02:36.9]}
22... Qe7 {[%clk 0:01:53.6]} 23. b4 {[%clk 0:02:28.8]} 23... axb4 {[%clk
0:01:53]} 24. Qxb4 {[%clk 0:02:29.7]} 24... Ng4 {[%clk 0:01:50.2]} 25. Qxb6
{[%clk 0:02:15.6]} 25... Nxe3 {[%clk 0:01:41.3]} 26. fxe3 {[%clk 0:02:16.5]}
26... Be5 {[%clk 0:01:32.8]} 27. Bc4 {[%clk 0:02:05.2]} 27... Rb8 {[%clk
0:01:31.7]} 28. Qc6 {[%clk 0:02:00.9]} 28... Rb2 {[%clk 0:01:28.2]} 29. Bf1
{[%clk 0:01:46.1]} 29... Ne4 {[%clk 0:01:21.5]} 30. Rc2 {[%clk 0:01:39.2]} 30...
Rfb8 {[%clk 0:01:17.5]} 31. Rxb2 {[%clk 0:01:35.5]} 31... Rxb2 {[%clk
0:01:17.2]} 32. Qc8+ {[%clk 0:01:36.1]} 32... Kf7 {[%clk 0:01:17]} 33. Bc4
{[%clk 0:01:35.9]} 33... Bxf4 {[%clk 0:01:14.1]} 34. gxf4 {[%clk 0:01:31.1]}
34... d5 {[%clk 0:01:05.3]} 35. Bxd5 {[%clk 0:01:14.4]} 35... exd5 {[%clk
0:01:04.8]} 36. Rxd5 {[%clk 0:01:15]} 36... Nf6 {[%clk 0:00:59.3]} 37. Re5
{[%clk 0:01:15.4]} 37... Qd6 {[%clk 0:00:54.2]} 38. Qc4+ {[%clk 0:01:10.3]}
38... Kg6 {[%clk 0:00:51.6]} 39. Qc1 {[%clk 0:00:52.1]} 39... Rd2 {[%clk
0:00:44.8]} 40. Qc8 {[%clk 0:00:44.3]} 40... Qd3 {[%clk 0:00:40.7]} 41. Qc6
{[%clk 0:00:32.8]} 41... Qb1+ {[%clk 0:00:39.2]} 0-1

[Event "Early-Titled-Tuesday-Blitz-July-09-2024"]
[Site "Chess.com"]
[Date "2024.07.09"]
[Round "7"]
[White "Zavgorodniy_Sergiy"]
[Black "Iball95"]
[Result "0-1"]
[WhiteElo "2664"]
[BlackElo "2909"]
[TimeControl "180+1"]
[EndTime "9:19:24 PDT"]
[Termination "Iball95 won on time"]

1. d4 {[%clk 0:03:00.9]} 1... d5 {[%clk 0:02:59.8]} 2. Nc3 {[%clk 0:02:57.9]}
2... Nf6 {[%clk 0:02:59.2]} 3. Bf4 {[%clk 0:02:56.9]} 3... c5 {[%clk 0:02:58.7]}
4. e3 {[%clk 0:02:44.9]} 4... cxd4 {[%clk 0:02:58]} 5. exd4 {[%clk 0:02:40.3]}
5... a6 {[%clk 0:02:54.8]} 6. Nf3 {[%clk 0:02:33.2]} 6... Bg4 {[%clk 0:02:54.3]}
7. Be2 {[%clk 0:02:32.7]} 7... Bxf3 {[%clk 0:02:50.2]} 8. Bxf3 {[%clk
0:02:32.2]} 8... Nc6 {[%clk 0:02:50.9]} 9. O-O {[%clk 0:02:31.9]} 9... e6 {[%clk
0:02:51.5]} 10. Ne2 {[%clk 0:02:29.4]} 10... Bd6 {[%clk 0:02:51.6]} 11. Bg5
{[%clk 0:02:26]} 11... h6 {[%clk 0:02:51.4]} 12. Be3 {[%clk 0:02:25.5]} 12...
O-O {[%clk 0:02:51]} 13. c3 {[%clk 0:02:25]} 13... b5 {[%clk 0:02:50.7]} 14. a3
{[%clk 0:02:20.4]} 14... Rc8 {[%clk 0:02:50]} 15. Nc1 {[%clk 0:02:19.4]} 15...
Na5 {[%clk 0:02:42.8]} 16. Nd3 {[%clk 0:02:14.1]} 16... Nc4 {[%clk 0:02:42.1]}
17. Bc1 {[%clk 0:02:14.6]} 17... a5 {[%clk 0:02:36.6]} 18. Re1 {[%clk
0:01:57.4]} 18... Re8 {[%clk 0:02:33.3]} 19. g3 {[%clk 0:01:56.2]} 19... Qc7
{[%clk 0:02:01.1]} 20. Bg2 {[%clk 0:01:51.9]} 20... b4 {[%clk 0:01:55.5]} 21.
cxb4 {[%clk 0:01:44.3]} 21... axb4 {[%clk 0:01:56.4]} 22. a4 {[%clk 0:01:44.8]}
22... Qb6 {[%clk 0:01:50.9]} 23. Ne5 {[%clk 0:01:43.5]} 23... b3 {[%clk
0:01:42.1]} 24. Qd3 {[%clk 0:01:17.4]} 24... Bxe5 {[%clk 0:01:34.1]} 25. dxe5
{[%clk 0:01:15.7]} 25... Ng4 {[%clk 0:01:33.4]} 26. Qe2 {[%clk 0:01:06.4]} 26...
Ngxe5 {[%clk 0:01:31.8]} 27. Bf4 {[%clk 0:01:05.6]} 27... Nc6 {[%clk 0:01:29.6]}
28. Qg4 {[%clk 0:00:55.9]} 28... Kh8 {[%clk 0:01:15.4]} 29. Qh5 {[%clk
0:00:49.5]} 29... Kg8 {[%clk 0:00:56.6]} 30. Qg4 {[%clk 0:00:47.7]} 30... Qd4
{[%clk 0:00:46.6]} 31. Rad1 {[%clk 0:00:45.3]} 31... Qf6 {[%clk 0:00:41.2]} 32.
Rd3 {[%clk 0:00:28.9]} 32... N6e5 {[%clk 0:00:36.6]} 0-1

[Event "Early-Titled-Tuesday-Blitz-July-09-2024"]
[Site "Chess.com"]
[Date "2024.07.09"]
[Round "7"]
[White "simonachess"]
[Black "Cheer_Down"]
[Result "0-1"]
[WhiteElo "2305"]
[BlackElo "2429"]
[TimeControl "180+1"]
[EndTime "9:19:25 PDT"]
[Termination "Cheer_Down won on time"]

1. d4 {[%clk 0:03:00.9]} 1... d5 {[%clk 0:02:40.7]} 2. c4 {[%clk 0:03:00.5]}
2... e6 {[%clk 0:02:40.6]} 3. Nc3 {[%clk 0:03:00.7]} 3... Nf6 {[%clk 0:02:40.4]}
4. Nf3 {[%clk 0:02:58.6]} 4... Nbd7 {[%clk 0:02:38.1]} 5. Bf4 {[%clk 0:02:56.1]}
5... dxc4 {[%clk 0:02:37.4]} 6. e3 {[%clk 0:02:55.7]} 6... b5 {[%clk 0:02:37.2]}
7. Be2 {[%clk 0:02:47.1]} 7... a6 {[%clk 0:02:32.2]} 8. O-O {[%clk 0:02:46.4]}
8... Bb7 {[%clk 0:02:32.4]} 9. Qc2 {[%clk 0:02:42.6]} 9... Bd6 {[%clk
0:02:29.7]} 10. Bg5 {[%clk 0:02:42.1]} 10... c5 {[%clk 0:02:22.9]} 11. e4 {[%clk
0:02:32.9]} 11... cxd4 {[%clk 0:02:16.7]} 12. Nxd4 {[%clk 0:02:30.2]} 12... Qb8
{[%clk 0:01:54.9]} 13. Nf3 {[%clk 0:02:06.9]} 13... Ne5 {[%clk 0:01:52.9]} 14.
Nd2 {[%clk 0:01:41.6]} 14... h6 {[%clk 0:01:35.3]} 15. Bxf6 {[%clk 0:01:37.8]}
15... gxf6 {[%clk 0:01:35.7]} 16. f4 {[%clk 0:01:35.1]} 16... Nc6 {[%clk
0:01:33.5]} 17. f5 {[%clk 0:01:15.5]} 17... Bxh2+ {[%clk 0:01:28.7]} 18. Kh1
{[%clk 0:01:15.9]} 18... Be5 {[%clk 0:01:18.7]} 19. Nf3 {[%clk 0:01:07.7]} 19...
Nd4 {[%clk 0:01:18.6]} 20. Nxd4 {[%clk 0:01:07.8]} 20... Bxd4 {[%clk 0:01:19.5]}
21. fxe6 {[%clk 0:01:08.3]} 21... fxe6 {[%clk 0:01:19.5]} 22. e5 {[%clk
0:01:08.7]} 22... f5 {[%clk 0:01:16.9]} 23. Bh5+ {[%clk 0:00:52.6]} 23... Ke7
{[%clk 0:01:14.8]} 24. Rad1 {[%clk 0:00:45.8]} 24... Qxe5 {[%clk 0:01:02.1]} 25.
Bf3 {[%clk 0:00:22.8]} 25... Bxf3 {[%clk 0:00:49]} 26. Rxf3 {[%clk 0:00:23.7]}
26... Rad8 {[%clk 0:00:47.5]} 27. Rdf1 {[%clk 0:00:13.7]} 27... Rhg8 {[%clk
0:00:43]} 28. Ne2 {[%clk 0:00:12.8]} 28... Rg4 {[%clk 0:00:38.3]} 29. Rh3 {[%clk
0:00:11.8]} 29... Be3 {[%clk 0:00:33.9]} 30. Nc3 {[%clk 0:00:09.9]} 30... Rd2
{[%clk 0:00:31.1]} 0-1

[Event "Early-Titled-Tuesday-Blitz-July-09-2024"]
[Site "Chess.com"]
[Date "2024.07.09"]
[Round "7"]
[White "xh4823"]
[Black "JoJoZP"]
[Result "0-1"]
[WhiteElo "2344"]
[BlackElo "2497"]
[TimeControl "180+1"]
[EndTime "9:19:26 PDT"]
[Termination "JoJoZP won on time"]

1. d4 {[%clk 0:02:55.4]} 1... Nf6 {[%clk 0:02:59.8]} 2. c4 {[%clk 0:02:54.8]}
2... g6 {[%clk 0:03:00]} 3. Nc3 {[%clk 0:02:53.9]} 3... d5 {[%clk 0:03:00.5]} 4.
cxd5 {[%clk 0:02:51.9]} 4... Nxd5 {[%clk 0:03:01.4]} 5. g3 {[%clk 0:02:52.4]}
5... Bg7 {[%clk 0:02:58.9]} 6. Bg2 {[%clk 0:02:51.3]} 6... Nxc3 {[%clk
0:02:59.3]} 7. bxc3 {[%clk 0:02:52.2]} 7... c5 {[%clk 0:03:00.2]} 8. e3 {[%clk
0:02:51.7]} 8... O-O {[%clk 0:02:57.8]} 9. Ne2 {[%clk 0:02:51.7]} 9... Nc6
{[%clk 0:02:56]} 10. O-O {[%clk 0:02:51.4]} 10... Qc7 {[%clk 0:02:53]} 11. a4
{[%clk 0:02:48.1]} 11... b6 {[%clk 0:02:49.8]} 12. Ba3 {[%clk 0:02:44.1]} 12...
Rd8 {[%clk 0:02:46.9]} 13. Qb3 {[%clk 0:02:31.3]} 13... Ba6 {[%clk 0:02:43]} 14.
Rfe1 {[%clk 0:02:16]} 14... Rac8 {[%clk 0:02:37.2]} 15. Qa2 {[%clk 0:01:59.6]}
15... Na5 {[%clk 0:02:25.2]} 16. Nf4 {[%clk 0:01:51.7]} 16... e6 {[%clk
0:02:18.6]} 17. Rac1 {[%clk 0:01:35.5]} 17... Bc4 {[%clk 0:02:10.3]} 18. Qb2
{[%clk 0:01:24.6]} 18... e5 {[%clk 0:02:06.4]} 19. Ne2 {[%clk 0:00:53]} 19...
Ba6 {[%clk 0:01:51.9]} 20. d5 {[%clk 0:00:29.6]} 20... Nc4 {[%clk 0:01:47.3]}
21. Qa2 {[%clk 0:00:27.2]} 21... Nd6 {[%clk 0:01:38.7]} 22. e4 {[%clk
0:00:24.2]} 22... Rf8 {[%clk 0:01:36.7]} 23. c4 {[%clk 0:00:18.2]} 23... f5
{[%clk 0:01:36.6]} 24. f3 {[%clk 0:00:15.9]} 24... Rf7 {[%clk 0:01:34.8]} 25.
Rf1 {[%clk 0:00:15.4]} 25... Rcf8 {[%clk 0:01:33.9]} 26. exf5 {[%clk 0:00:15.2]}
26... gxf5 {[%clk 0:01:33.7]} 27. Bb2 {[%clk 0:00:15.9]} 27... Qd7 {[%clk
0:01:21.2]} 28. a5 {[%clk 0:00:15.5]} 28... b5 {[%clk 0:01:20]} 29. cxb5 {[%clk
0:00:10.9]} 29... Qxb5 {[%clk 0:01:18.8]} 30. f4 {[%clk 0:00:08.5]} 30... Qxe2
{[%clk 0:01:17.4]} 31. fxe5 {[%clk 0:00:07.1]} 31... Bxe5 {[%clk 0:01:14.9]} 32.
Rf2 {[%clk 0:00:06.8]} 32... Bd4 {[%clk 0:01:03.8]} 33. Bxd4 {[%clk 0:00:06.2]}
33... Qxa2 {[%clk 0:01:04.6]} 34. Rxa2 {[%clk 0:00:03.9]} 34... cxd4 {[%clk
0:01:05.5]} 35. Rc6 {[%clk 0:00:03.6]} 35... Bc4 {[%clk 0:01:03.1]} 36. Rc2
{[%clk 0:00:03]} 36... d3 {[%clk 0:01:00.7]} 37. Rd2 {[%clk 0:00:03.1]} 37...
Rd8 {[%clk 0:00:59.1]} 38. Bf1 {[%clk 0:00:03.3]} 38... Bxd5 {[%clk 0:00:57.6]}
0-1

[Event "Early-Titled-Tuesday-Blitz-July-09-2024"]
[Site "Chess.com"]
[Date "2024.07.09"]
[Round "7"]
[White "FloMasterAAK"]
[Black "Flawless_Fighter"]
[Result "1-0"]
[WhiteElo "2601"]
[BlackElo "2776"]
[TimeControl "180+1"]
[EndTime "9:19:27 PDT"]
[Termination "FloMasterAAK won by resignation"]

1. e4 {[%clk 0:03:00.9]} 1... c6 {[%clk 0:02:58.5]} 2. d4 {[%clk 0:03:00.5]}
2... d5 {[%clk 0:02:59.4]} 3. Nc3 {[%clk 0:03:00.7]} 3... dxe4 {[%clk
0:02:59.7]} 4. Nxe4 {[%clk 0:03:01.3]} 4... Nf6 {[%clk 0:03:00.6]} 5. Nxf6+
{[%clk 0:03:01.6]} 5... exf6 {[%clk 0:03:01.5]} 6. c3 {[%clk 0:03:02.2]} 6...
Bd6 {[%clk 0:03:02.1]} 7. Bd3 {[%clk 0:03:02.7]} 7... O-O {[%clk 0:03:02.8]} 8.
Qc2 {[%clk 0:03:03.3]} 8... Re8+ {[%clk 0:03:03.2]} 9. Ne2 {[%clk 0:03:03.6]}
9... h5 {[%clk 0:03:03.9]} 10. Be3 {[%clk 0:03:03.9]} 10... Nd7 {[%clk
0:03:04.5]} 11. O-O-O {[%clk 0:03:04.4]} 11... Nf8 {[%clk 0:03:05.2]} 12. h3
{[%clk 0:03:04.8]} 12... Be6 {[%clk 0:03:04.6]} 13. c4 {[%clk 0:03:03]} 13...
Rc8 {[%clk 0:03:02.3]} 14. g4 {[%clk 0:02:57]} 14... h4 {[%clk 0:02:58.5]} 15.
Kb1 {[%clk 0:02:51.2]} 15... b5 {[%clk 0:02:57.1]} 16. c5 {[%clk 0:02:51.2]}
16... Bc7 {[%clk 0:02:55.5]} 17. Nc3 {[%clk 0:02:43.6]} 17... Ba5 {[%clk
0:02:45.3]} 18. d5 {[%clk 0:02:39.9]} 18... cxd5 {[%clk 0:02:38.7]} 19. Nxb5
{[%clk 0:02:38.5]} 19... Re7 {[%clk 0:02:34.7]} 20. g5 {[%clk 0:02:17.9]} 20...
fxg5 {[%clk 0:02:22.4]} 21. Bxg5 {[%clk 0:02:15.8]} 21... f6 {[%clk 0:02:22.7]}
22. Bf4 {[%clk 0:02:02.5]} 22... Bb4 {[%clk 0:02:19.3]} 23. Bd6 {[%clk
0:01:54.1]} 23... Rd7 {[%clk 0:02:19.1]} 24. a3 {[%clk 0:01:38.6]} 24... Rxd6
{[%clk 0:01:01.3]} 25. axb4 {[%clk 0:01:38.1]} 25... Rd7 {[%clk 0:00:56.9]} 26.
Nd4 {[%clk 0:01:35.9]} 26... Bf7 {[%clk 0:00:53.8]} 27. Bf5 {[%clk 0:01:34.9]}
27... a5 {[%clk 0:00:45.7]} 28. c6 {[%clk 0:01:29.1]} 28... axb4 {[%clk
0:00:40.7]} 29. Rhg1 {[%clk 0:01:25.7]} 29... Rdc7 {[%clk 0:00:34]} 30. Bxc8
{[%clk 0:01:23.5]} 30... Qxc8 {[%clk 0:00:34.1]} 31. Rg4 {[%clk 0:01:14.6]}
31... Ne6 {[%clk 0:00:28]} 32. Nf5 {[%clk 0:01:11.8]} 32... g5 {[%clk
0:00:15.3]} 33. Rxb4 {[%clk 0:01:08.1]} 33... Kf8 {[%clk 0:00:14.8]} 34. Nd6
{[%clk 0:00:51.7]} 34... Qd8 {[%clk 0:00:10.4]} 35. Nxf7 {[%clk 0:00:51.5]}
35... Rxf7 {[%clk 0:00:09.1]} 36. Qb3 {[%clk 0:00:47.3]} 36... Nc7 {[%clk
0:00:09]} 37. Rb8 {[%clk 0:00:46.2]} 1-0

[Event "Early-Titled-Tuesday-Blitz-July-09-2024"]
[Site "Chess.com"]
[Date "2024.07.09"]
[Round "7"]
[White "Veleamater"]
[Black "KevinGeorgeMicheal"]
[Result "0-1"]
[WhiteElo "2406"]
[BlackElo "2525"]
[TimeControl "180+1"]
[EndTime "9:19:27 PDT"]
[Termination "KevinGeorgeMicheal won by resignation"]

1. g3 {[%clk 0:03:00.9]} 1... g6 {[%clk 0:02:59]} 2. Bg2 {[%clk 0:03:01.2]} 2...
Bg7 {[%clk 0:02:59.6]} 3. d3 {[%clk 0:03:01.8]} 3... d6 {[%clk 0:02:59.6]} 4.
Nc3 {[%clk 0:03:00.7]} 4... Nc6 {[%clk 0:02:59.5]} 5. e4 {[%clk 0:03:01.2]} 5...
e5 {[%clk 0:02:59.6]} 6. Nge2 {[%clk 0:02:58.8]} 6... Nge7 {[%clk 0:02:59.8]} 7.
O-O {[%clk 0:02:58.7]} 7... O-O {[%clk 0:03:00.4]} 8. f4 {[%clk 0:02:58.9]} 8...
f5 {[%clk 0:03:00.6]} 9. Be3 {[%clk 0:02:57.9]} 9... Be6 {[%clk 0:03:00.6]} 10.
Qd2 {[%clk 0:02:57.9]} 10... Qd7 {[%clk 0:03:00]} 11. Rf2 {[%clk 0:02:54.7]}
11... Rf7 {[%clk 0:02:58.5]} 12. Raf1 {[%clk 0:02:53.9]} 12... Raf8 {[%clk
0:02:58.6]} 13. a3 {[%clk 0:02:51]} 13... d5 {[%clk 0:02:48.5]} 14. exd5 {[%clk
0:02:41.2]} 14... Nxd5 {[%clk 0:02:43.9]} 15. Bc5 {[%clk 0:02:39]} 15... Re8
{[%clk 0:02:38.2]} 16. fxe5 {[%clk 0:02:38.7]} 16... Nxe5 {[%clk 0:02:36.9]} 17.
Nf4 {[%clk 0:02:34.4]} 17... Nxf4 {[%clk 0:02:17.6]} 18. Rxf4 {[%clk 0:02:14.8]}
18... Bh6 {[%clk 0:02:15.9]} 19. Ne2 {[%clk 0:02:04.2]} 19... Bd5 {[%clk
0:02:05.6]} 20. Nc3 {[%clk 0:01:32.2]} 20... Bxg2 {[%clk 0:01:59.5]} 21. Qxg2
{[%clk 0:01:31.9]} 21... Bxf4 {[%clk 0:01:57.4]} 22. gxf4 {[%clk 0:01:32.1]}
22... Ng4 {[%clk 0:01:50.1]} 23. Qxb7 {[%clk 0:01:32]} 23... Qd8 {[%clk
0:01:29.1]} 24. Qf3 {[%clk 0:01:27.9]} 24... Qh4 {[%clk 0:01:27.2]} 25. h3
{[%clk 0:01:27.1]} 25... Nf6 {[%clk 0:01:15.3]} 26. Bxa7 {[%clk 0:01:24.2]}
26... Nh5 {[%clk 0:01:11]} 27. Kg2 {[%clk 0:01:18.9]} 27... g5 {[%clk
0:00:57.9]} 28. fxg5 {[%clk 0:01:12.8]} 28... Rg7 {[%clk 0:00:55]} 29. Bf2
{[%clk 0:01:07.1]} 29... Qxg5+ {[%clk 0:00:38.8]} 30. Kh2 {[%clk 0:01:07.1]}
30... Rf8 {[%clk 0:00:20.9]} 31. Qd5+ {[%clk 0:01:05]} 31... Kh8 {[%clk
0:00:19]} 32. Rg1 {[%clk 0:00:59.6]} 32... Qf4+ {[%clk 0:00:17.3]} 33. Kh1
{[%clk 0:00:49.5]} 33... Qxf2 {[%clk 0:00:16]} 34. Rxg7 {[%clk 0:00:47.9]} 34...
Kxg7 {[%clk 0:00:14.5]} 35. Qe5+ {[%clk 0:00:48]} 35... Rf6 {[%clk 0:00:12.2]}
36. Qxc7+ {[%clk 0:00:44.9]} 36... Kh6 {[%clk 0:00:12.2]} 0-1

[Event "Early-Titled-Tuesday-Blitz-July-09-2024"]
[Site "Chess.com"]
[Date "2024.07.09"]
[Round "7"]
[White "Chesstiger64"]
[Black "KhamzinOlzhas"]
[Result "1-0"]
[WhiteElo "2394"]
[BlackElo "2557"]
[TimeControl "180+1"]
[EndTime "9:19:28 PDT"]
[Termination "Chesstiger64 won by resignation"]

1. d4 {[%clk 0:03:00.9]} 1... Nf6 {[%clk 0:02:59.8]} 2. Nf3 {[%clk 0:03:00.9]}
2... g6 {[%clk 0:02:59.9]} 3. c4 {[%clk 0:03:00.9]} 3... Bg7 {[%clk 0:03:00.2]}
4. e3 {[%clk 0:03:01.2]} 4... O-O {[%clk 0:03:00.4]} 5. Be2 {[%clk 0:03:01.7]}
5... d6 {[%clk 0:03:00.2]} 6. O-O {[%clk 0:03:01.9]} 6... Nbd7 {[%clk
0:02:59.3]} 7. Nc3 {[%clk 0:03:02.4]} 7... e5 {[%clk 0:02:59.6]} 8. b4 {[%clk
0:03:02.1]} 8... Re8 {[%clk 0:03:00.2]} 9. a4 {[%clk 0:03:01.9]} 9... e4 {[%clk
0:02:59]} 10. Nd2 {[%clk 0:03:01.5]} 10... Nf8 {[%clk 0:02:59]} 11. Qc2 {[%clk
0:03:01.5]} 11... Bf5 {[%clk 0:02:58.1]} 12. b5 {[%clk 0:03:00.4]} 12... h5
{[%clk 0:02:57]} 13. Rd1 {[%clk 0:03:00]} 13... h4 {[%clk 0:02:57.1]} 14. Ba3
{[%clk 0:02:56.5]} 14... N8h7 {[%clk 0:02:56.6]} 15. c5 {[%clk 0:02:56.4]} 15...
h3 {[%clk 0:02:56.2]} 16. g3 {[%clk 0:02:55.8]} 16... d5 {[%clk 0:02:56.1]} 17.
c6 {[%clk 0:02:54.6]} 17... b6 {[%clk 0:02:53.2]} 18. a5 {[%clk 0:02:54.1]}
18... Ng5 {[%clk 0:02:52.1]} 19. Bb4 {[%clk 0:02:52.3]} 19... Bg4 {[%clk
0:02:50.4]} 20. axb6 {[%clk 0:02:40.4]} 20... axb6 {[%clk 0:02:40.9]} 21. Ra6
{[%clk 0:02:38.7]} 21... Bxe2 {[%clk 0:02:38.2]} 22. Nxe2 {[%clk 0:02:37.9]}
22... Ng4 {[%clk 0:02:37.9]} 23. Rda1 {[%clk 0:02:34.6]} 23... Rc8 {[%clk
0:02:38.4]} 24. Qa2 {[%clk 0:02:22.6]} 24... Qf6 {[%clk 0:02:37.2]} 25. Nf4
{[%clk 0:02:21.8]} 25... Ne6 {[%clk 0:02:32.2]} 26. Qxd5 {[%clk 0:02:20.7]}
26... g5 {[%clk 0:02:31.3]} 27. Nxe4 {[%clk 0:02:17.9]} 27... Qh6 {[%clk
0:02:12.6]} 28. Nxe6 {[%clk 0:02:16.6]} 28... Rxe6 {[%clk 0:02:00.5]} 29. Ra8
{[%clk 0:02:12]} 29... Rce8 {[%clk 0:01:11.1]} 30. Nxg5 {[%clk 0:01:55]} 30...
Qf6 {[%clk 0:01:02.6]} 31. f4 {[%clk 0:01:43.7]} 31... Rxe3 {[%clk 0:00:53.6]}
32. Bc3 {[%clk 0:00:54.3]} 32... Qe7 {[%clk 0:00:19.4]} 33. Qd7 {[%clk 0:00:40]}
33... Re1+ {[%clk 0:00:10]} 34. Rxe1 {[%clk 0:00:35.9]} 34... Qxe1+ {[%clk
0:00:10.9]} 35. Bxe1 {[%clk 0:00:35.4]} 1-0